[Event "Early-Titled-Tuesday-Blitz-July-09-2024"]
[Site "Chess.com"]
[Date "2024.07.09"]
[Round "3"]
[White "Nechitaylo_Nikita"]
[Black "CristhianPortalR"]
[Result "1-0"]
[WhiteElo "2318"]
[BlackElo "2502"]
[TimeControl "180+1"]
[EndTime "8:30:15 PDT"]
[Termination "Nechitaylo_Nikita won on time"]

1. d4 {[%clk 0:03:00.9]} 1... Nf6 {[%clk 0:02:56.9]} 2. c4 {[%clk 0:03:01]} 2...
g6 {[%clk 0:02:56.4]} 3. f3 {[%clk 0:03:00.5]} 3... d5 {[%clk 0:02:53.5]} 4.
cxd5 {[%clk 0:03:01.2]} 4... Nxd5 {[%clk 0:02:53.8]} 5. e4 {[%clk 0:03:01.3]}
5... Nb6 {[%clk 0:02:54.1]} 6. Nc3 {[%clk 0:03:02]} 6... Bg7 {[%clk 0:02:54.7]}
7. Be3 {[%clk 0:03:02.7]} 7... Nc6 {[%clk 0:02:54.2]} 8. Bb5 {[%clk 0:03:02.3]}
8... O-O {[%clk 0:02:50.8]} 9. Nge2 {[%clk 0:02:58.2]} 9... Qd6 {[%clk
0:02:46.8]} 10. Qd2 {[%clk 0:02:55.4]} 10... Rd8 {[%clk 0:02:42.3]} 11. O-O-O
{[%clk 0:02:55.9]} 11... a6 {[%clk 0:02:39.1]} 12. Bxc6 {[%clk 0:02:38.2]} 12...
Qxc6 {[%clk 0:02:39.3]} 13. d5 {[%clk 0:02:37.3]} 13... Qe8 {[%clk 0:02:36.9]}
14. Bxb6 {[%clk 0:02:29.5]} 14... cxb6 {[%clk 0:02:36.3]} 15. Kb1 {[%clk
0:02:28.6]} 15... Bd7 {[%clk 0:02:35.7]} 16. h4 {[%clk 0:02:27]} 16... b5 {[%clk
0:02:34.5]} 17. Ng3 {[%clk 0:02:20.8]} 17... Rac8 {[%clk 0:02:25.1]} 18. Nce2
{[%clk 0:02:12]} 18... b4 {[%clk 0:01:51.6]} 19. Qxb4 {[%clk 0:02:03.9]} 19...
Bb5 {[%clk 0:01:51.1]} 20. Rc1 {[%clk 0:01:50.3]} 20... Qd7 {[%clk 0:01:28.5]}
21. Rxc8 {[%clk 0:01:37]} 21... Rxc8 {[%clk 0:01:24.6]} 22. Rc1 {[%clk 0:01:26]}
22... Bh6 {[%clk 0:01:06]} 23. Rxc8+ {[%clk 0:01:07.8]} 23... Qxc8 {[%clk
0:01:05.4]} 24. Qc3 {[%clk 0:01:04.2]} 24... Qb8 {[%clk 0:01:00]} 25. Qc2 {[%clk
0:00:43.1]} 25... Bf4 {[%clk 0:00:41.7]} 26. Nf1 {[%clk 0:00:29.8]} 26... Bd6
{[%clk 0:00:31.1]} 27. a4 {[%clk 0:00:27]} 27... Bd7 {[%clk 0:00:28.7]} 28. Ne3
{[%clk 0:00:22.8]} 28... Qa7 {[%clk 0:00:28.7]} 29. Qc3 {[%clk 0:00:16.1]} 29...
Bxa4 {[%clk 0:00:25]} 30. Qc8+ {[%clk 0:00:06.4]} 30... Kg7 {[%clk 0:00:24.5]}
31. Qc3+ {[%clk 0:00:06.7]} 31... f6 {[%clk 0:00:25]} 32. Nc4 {[%clk 0:00:03.1]}
32... Bb8 {[%clk 0:00:19.9]} 33. e5 {[%clk 0:00:02]} 33... Qf2 {[%clk 0:00:17]}
34. exf6+ {[%clk 0:00:02]} 34... exf6 {[%clk 0:00:16.9]} 35. Nd4 {[%clk
0:00:01.8]} 35... Qg1+ {[%clk 0:00:14.6]} 36. Ka2 {[%clk 0:00:01.8]} 36... Qd1
{[%clk 0:00:08.6]} 37. Ne6+ {[%clk 0:00:01.4]} 37... Kf7 {[%clk 0:00:07]} 38.
Qb4 {[%clk 0:00:02]} 38... Qxd5 {[%clk 0:00:04.8]} 39. Qf8+ {[%clk 0:00:01.7]}
39... Kxe6 {[%clk 0:00:05.1]} 40. Qg8+ {[%clk 0:00:02.2]} 40... Ke7 {[%clk
0:00:04.3]} 41. Qxd5 {[%clk 0:00:03.1]} 41... Bb3+ {[%clk 0:00:03]} 42. Kxb3
{[%clk 0:00:02.4]} 1-0

[Event "Early-Titled-Tuesday-Blitz-July-09-2024"]
[Site "Chess.com"]
[Date "2024.07.09"]
[Round "3"]
[White "Alex_Sahakyan2006"]
[Black "AryanTari"]
[Result "1/2-1/2"]
[WhiteElo "2747"]
[BlackElo "2998"]
[TimeControl "180+1"]
[EndTime "8:30:19 PDT"]
[Termination "Game drawn by repetition"]

1. e4 {[%clk 0:03:00.9]} 1... e5 {[%clk 0:02:59.7]} 2. Nf3 {[%clk 0:02:59.9]}
2... Nc6 {[%clk 0:03:00.1]} 3. Nc3 {[%clk 0:02:58.1]} 3... Nf6 {[%clk
0:02:59.8]} 4. Bb5 {[%clk 0:02:58.2]} 4... Bd6 {[%clk 0:02:57.9]} 5. d3 {[%clk
0:02:57.7]} 5... h6 {[%clk 0:02:54.9]} 6. h3 {[%clk 0:02:56.3]} 6... a6 {[%clk
0:02:52.2]} 7. Ba4 {[%clk 0:02:55.7]} 7... b5 {[%clk 0:02:50.2]} 8. Bb3 {[%clk
0:02:55.1]} 8... Na5 {[%clk 0:02:50.8]} 9. d4 {[%clk 0:02:43.1]} 9... exd4
{[%clk 0:02:31.2]} 10. Qxd4 {[%clk 0:02:40.1]} 10... Qe7 {[%clk 0:01:45.5]} 11.
Nd5 {[%clk 0:02:11]} 11... Nxb3 {[%clk 0:01:43]} 12. Nxf6+ {[%clk 0:02:01.8]}
12... Qxf6 {[%clk 0:01:43.9]} 13. Qxf6 {[%clk 0:01:59.5]} 13... gxf6 {[%clk
0:01:44.8]} 14. axb3 {[%clk 0:02:00.3]} 14... Bb7 {[%clk 0:01:45.1]} 15. O-O
{[%clk 0:01:50.7]} 15... f5 {[%clk 0:01:35.6]} 16. exf5 {[%clk 0:01:33.4]} 16...
Bxf3 {[%clk 0:01:36.5]} 17. Re1+ {[%clk 0:01:33.5]} 17... Kd8 {[%clk 0:01:25.6]}
18. gxf3 {[%clk 0:01:32.8]} 18... Kc8 {[%clk 0:01:26.3]} 19. Be3 {[%clk
0:01:29.8]} 19... Kb7 {[%clk 0:01:26.2]} 20. Rad1 {[%clk 0:01:17.2]} 20... Rae8
{[%clk 0:01:19]} 21. Kf1 {[%clk 0:01:15.4]} 21... Kc6 {[%clk 0:01:13.7]} 22. Bd4
{[%clk 0:01:10.6]} 22... Rxe1+ {[%clk 0:01:10.7]} 23. Rxe1 {[%clk 0:01:11.5]}
23... Rg8 {[%clk 0:01:10.6]} 24. Bf6 {[%clk 0:01:04]} 24... a5 {[%clk
0:01:10.8]} 25. Re4 {[%clk 0:01:02.2]} 25... Ra8 {[%clk 0:01:04.9]} 26. Rh4
{[%clk 0:00:51.7]} 26... Bf8 {[%clk 0:01:05]} 27. Ke2 {[%clk 0:00:48]} 27... a4
{[%clk 0:00:50.6]} 28. bxa4 {[%clk 0:00:47.5]} 28... Rxa4 {[%clk 0:00:51.3]} 29.
Rxa4 {[%clk 0:00:41.6]} 29... bxa4 {[%clk 0:00:52.2]} 30. Kd3 {[%clk 0:00:42.3]}
30... d5 {[%clk 0:00:52]} 31. c4 {[%clk 0:00:31.3]} 31... Bc5 {[%clk 0:00:48]}
32. Bd4 {[%clk 0:00:20.6]} 32... Kd6 {[%clk 0:00:30.9]} 33. Be3 {[%clk
0:00:16.1]} 33... h5 {[%clk 0:00:28.5]} 34. Bf4+ {[%clk 0:00:14]} 34... Kc6
{[%clk 0:00:28.7]} 35. cxd5+ {[%clk 0:00:14.6]} 35... Kxd5 {[%clk 0:00:29.6]}
36. Bxc7 {[%clk 0:00:15]} 36... Bd4 {[%clk 0:00:30.3]} 37. Kc2 {[%clk
0:00:12.9]} 37... Kc4 {[%clk 0:00:30.2]} 38. Bg3 {[%clk 0:00:12.7]} 38... Bf6
{[%clk 0:00:30.2]} 39. Bf4 {[%clk 0:00:12.6]} 39... Bd4 {[%clk 0:00:25.7]} 40.
Be3 {[%clk 0:00:12.9]} 40... Be5 {[%clk 0:00:24.3]} 41. Bc1 {[%clk 0:00:12.2]}
41... Bd6 {[%clk 0:00:19.9]} 42. Be3 {[%clk 0:00:11.9]} 42... Bb4 {[%clk
0:00:19.9]} 43. Bf4 {[%clk 0:00:10.8]} 43... Ba5 {[%clk 0:00:19.2]} 44. Be3
{[%clk 0:00:11.7]} 44... Bc7 {[%clk 0:00:19.5]} 45. Bg5 {[%clk 0:00:11.6]} 45...
Bd6 {[%clk 0:00:16.4]} 46. Be3 {[%clk 0:00:12]} 46... Be5 {[%clk 0:00:11.5]} 47.
Bd2 {[%clk 0:00:11.7]} 47... Bf6 {[%clk 0:00:08.9]} 48. Be3 {[%clk 0:00:11.5]}
48... Bg7 {[%clk 0:00:04.2]} 49. Bc1 {[%clk 0:00:11.8]} 49... Bh8 {[%clk
0:00:04.5]} 50. Bg5 {[%clk 0:00:11.1]} 50... Be5 {[%clk 0:00:04.3]} 51. Be3
{[%clk 0:00:11.2]} 51... Bc7 {[%clk 0:00:04.8]} 52. Bg5 {[%clk 0:00:11.3]} 52...
Bd6 {[%clk 0:00:05.2]} 53. Be3 {[%clk 0:00:11.7]} 1/2-1/2

[Event "Early-Titled-Tuesday-Blitz-July-09-2024"]
[Site "Chess.com"]
[Date "2024.07.09"]
[Round "3"]
[White "C_K_G"]
[Black "NajdorfPlayerc5"]
[Result "0-1"]
[WhiteElo "2234"]
[BlackElo "2426"]
[TimeControl "180+1"]
[EndTime "8:30:19 PDT"]
[Termination "NajdorfPlayerc5 won on time"]

1. e4 {[%clk 0:02:59.5]} 1... c5 {[%clk 0:02:59.5]} 2. Nf3 {[%clk 0:02:57.2]}
2... d6 {[%clk 0:02:58.5]} 3. d4 {[%clk 0:02:56.8]} 3... cxd4 {[%clk 0:02:59.4]}
4. Nxd4 {[%clk 0:02:56]} 4... Nf6 {[%clk 0:02:59.2]} 5. Nc3 {[%clk 0:02:55.8]}
5... a6 {[%clk 0:02:59.2]} 6. Be2 {[%clk 0:02:54.1]} 6... e5 {[%clk 0:02:59.2]}
7. Nb3 {[%clk 0:02:53.5]} 7... Be7 {[%clk 0:02:57.9]} 8. Be3 {[%clk 0:02:52.8]}
8... Be6 {[%clk 0:02:55.7]} 9. O-O {[%clk 0:02:51.9]} 9... O-O {[%clk
0:02:55.1]} 10. f4 {[%clk 0:02:51.6]} 10... exf4 {[%clk 0:02:41.7]} 11. Bxf4
{[%clk 0:02:44]} 11... Nc6 {[%clk 0:02:41.3]} 12. Nd5 {[%clk 0:02:33.4]} 12...
Ne5 {[%clk 0:01:49.5]} 13. Qd4 {[%clk 0:02:07.8]} 13... Bxd5 {[%clk 0:01:32.1]}
14. exd5 {[%clk 0:02:05.3]} 14... Nfd7 {[%clk 0:01:26.5]} 15. Qd2 {[%clk
0:01:47.2]} 15... Bf6 {[%clk 0:01:17.4]} 16. Kh1 {[%clk 0:01:38.8]} 16... g6
{[%clk 0:01:13.2]} 17. c4 {[%clk 0:01:35.5]} 17... Bg7 {[%clk 0:01:05.1]} 18.
Rac1 {[%clk 0:01:30.2]} 18... Qc7 {[%clk 0:00:49.2]} 19. h4 {[%clk 0:01:21.3]}
19... Rad8 {[%clk 0:00:45.7]} 20. h5 {[%clk 0:01:17.4]} 20... Nc5 {[%clk
0:00:44.9]} 21. Nxc5 {[%clk 0:01:07.8]} 21... dxc5 {[%clk 0:00:45.8]} 22. hxg6
{[%clk 0:00:47]} 22... hxg6 {[%clk 0:00:34.7]} 23. Rc3 {[%clk 0:00:41.8]} 23...
Rfe8 {[%clk 0:00:24.9]} 24. Rh3 {[%clk 0:00:37.8]} 24... Qe7 {[%clk 0:00:24]}
25. Bg5 {[%clk 0:00:33.8]} 25... f6 {[%clk 0:00:24.1]} 26. Bh6 {[%clk
0:00:30.9]} 26... Qf7 {[%clk 0:00:12.8]} 27. Bd3 {[%clk 0:00:21]} 27... Qf8
{[%clk 0:00:08.6]} 28. b3 {[%clk 0:00:18.4]} 28... Bxh6 {[%clk 0:00:08.7]} 29.
Rxh6 {[%clk 0:00:18.1]} 29... Qg7 {[%clk 0:00:08.9]} 30. Rh3 {[%clk 0:00:16.2]}
30... Kf7 {[%clk 0:00:08.3]} 31. Bc2 {[%clk 0:00:15.2]} 31... Rh8 {[%clk
0:00:07.9]} 32. Qc3 {[%clk 0:00:13.4]} 32... Rxh3+ {[%clk 0:00:07]} 33. gxh3
{[%clk 0:00:14.3]} 33... Ke7 {[%clk 0:00:06.2]} 34. a3 {[%clk 0:00:12.1]} 34...
Rh8 {[%clk 0:00:03.7]} 35. Kg2 {[%clk 0:00:10.2]} 35... Qh6 {[%clk 0:00:02.9]}
36. Rf2 {[%clk 0:00:07.4]} 36... Qg5+ {[%clk 0:00:02.6]} 37. Qg3 {[%clk
0:00:07.1]} 37... Qxg3+ {[%clk 0:00:02.4]} 38. Kxg3 {[%clk 0:00:08]} 38... f5
{[%clk 0:00:02.2]} 39. Bb1 {[%clk 0:00:04.7]} 39... Kd6 {[%clk 0:00:03.1]} 40.
Re2 {[%clk 0:00:03.4]} 40... b6 {[%clk 0:00:02.9]} 41. Ba2 {[%clk 0:00:01.7]}
41... g5 {[%clk 0:00:02.3]} 42. b4 {[%clk 0:00:01.7]} 42... f4+ {[%clk
0:00:03.2]} 0-1

[Event "Early-Titled-Tuesday-Blitz-July-09-2024"]
[Site "Chess.com"]
[Date "2024.07.09"]
[Round "3"]
[White "Kazmin_Semyon"]
[Black "MarlonJodar"]
[Result "0-1"]
[WhiteElo "2579"]
[BlackElo "2383"]
[TimeControl "180+1"]
[EndTime "8:30:25 PDT"]
[Termination "MarlonJodar won by resignation"]

1. e4 {[%clk 0:02:58.1]} 1... e5 {[%clk 0:02:59.5]} 2. Nf3 {[%clk 0:02:58.8]}
2... Nc6 {[%clk 0:02:59.6]} 3. g3 {[%clk 0:02:59.5]} 3... Nf6 {[%clk 0:02:58.6]}
4. d3 {[%clk 0:02:53.7]} 4... d5 {[%clk 0:02:57.8]} 5. Nbd2 {[%clk 0:02:49.2]}
5... dxe4 {[%clk 0:02:55]} 6. dxe4 {[%clk 0:02:50.1]} 6... Bc5 {[%clk
0:02:54.7]} 7. Bg2 {[%clk 0:02:49.9]} 7... O-O {[%clk 0:02:54.3]} 8. O-O {[%clk
0:02:50.2]} 8... Re8 {[%clk 0:02:54]} 9. c3 {[%clk 0:02:50.2]} 9... a5 {[%clk
0:02:53.2]} 10. a4 {[%clk 0:02:49.2]} 10... Bg4 {[%clk 0:02:51.3]} 11. h3 {[%clk
0:02:48.1]} 11... Be6 {[%clk 0:02:50.9]} 12. Qe2 {[%clk 0:02:46]} 12... Qd7
{[%clk 0:02:38.8]} 13. Kh2 {[%clk 0:02:34.2]} 13... Rad8 {[%clk 0:02:38.1]} 14.
Nc4 {[%clk 0:02:31.9]} 14... Qd3 {[%clk 0:02:20.5]} 15. Qxd3 {[%clk 0:02:30.2]}
15... Rxd3 {[%clk 0:02:21.4]} 16. Ncxe5 {[%clk 0:02:29.3]} 16... Nxe5 {[%clk
0:02:19.1]} 17. Nxe5 {[%clk 0:02:30.2]} 17... Rdd8 {[%clk 0:02:17.4]} 18. Bg5
{[%clk 0:02:09.8]} 18... Bb3 {[%clk 0:02:10.2]} 19. Ng4 {[%clk 0:01:14.9]} 19...
Be7 {[%clk 0:01:45.7]} 20. Nxf6+ {[%clk 0:01:09]} 20... Bxf6 {[%clk 0:01:45.7]}
21. Bxf6 {[%clk 0:01:09.4]} 21... gxf6 {[%clk 0:01:46.6]} 22. Ra3 {[%clk
0:01:09.8]} 22... Bc4 {[%clk 0:01:45.4]} 23. Rb1 {[%clk 0:01:05]} 23... Rd2
{[%clk 0:01:44.5]} 24. b3 {[%clk 0:01:00.7]} 24... Bd3 {[%clk 0:01:39.2]} 25.
Rba1 {[%clk 0:00:55.7]} 25... Rxf2 {[%clk 0:01:36.9]} 26. R3a2 {[%clk 0:00:56]}
26... Rxa2 {[%clk 0:01:08.6]} 27. Rxa2 {[%clk 0:00:56.9]} 27... c6 {[%clk
0:00:34.3]} 28. g4 {[%clk 0:00:48.5]} 28... Kf8 {[%clk 0:00:30.1]} 29. Rd2
{[%clk 0:00:40.2]} 29... Bxe4 {[%clk 0:00:29.7]} 30. Bxe4 {[%clk 0:00:36.3]}
30... Rxe4 {[%clk 0:00:30.6]} 31. Rd7 {[%clk 0:00:36.7]} 31... Re2+ {[%clk
0:00:15.2]} 32. Kg3 {[%clk 0:00:23.8]} 32... Re3+ {[%clk 0:00:15]} 33. Kh4
{[%clk 0:00:24.5]} 33... b5 {[%clk 0:00:14.8]} 34. axb5 {[%clk 0:00:20.7]} 34...
cxb5 {[%clk 0:00:15.7]} 35. Rb7 {[%clk 0:00:21]} 35... Rxc3 {[%clk 0:00:14.9]}
36. Rxb5 {[%clk 0:00:21]} 36... Kg7 {[%clk 0:00:15.3]} 37. g5 {[%clk 0:00:19]}
37... fxg5+ {[%clk 0:00:15.1]} 38. Rxg5+ {[%clk 0:00:19.8]} 38... Kf6 {[%clk
0:00:14.8]} 39. Rb5 {[%clk 0:00:19.9]} 39... h6 {[%clk 0:00:14.4]} 40. Kg4
{[%clk 0:00:20.1]} 40... Kg7 {[%clk 0:00:14]} 41. h4 {[%clk 0:00:20.3]} 41...
Kg6 {[%clk 0:00:13]} 42. Rb6+ {[%clk 0:00:20.2]} 42... Kg7 {[%clk 0:00:13.4]}
43. Kh5 {[%clk 0:00:20.2]} 43... Rc5+ {[%clk 0:00:13]} 44. Kg4 {[%clk
0:00:20.9]} 44... h5+ {[%clk 0:00:12.3]} 45. Kf4 {[%clk 0:00:20.9]} 45... f6
{[%clk 0:00:12.9]} 46. Rb8 {[%clk 0:00:19.4]} 46... Kg6 {[%clk 0:00:12.1]} 47.
Rg8+ {[%clk 0:00:19]} 47... Kf7 {[%clk 0:00:12.2]} 48. Rh8 {[%clk 0:00:19.2]}
48... Kg6 {[%clk 0:00:12.7]} 49. Rb8 {[%clk 0:00:19.4]} 49... Rf5+ {[%clk
0:00:11.2]} 50. Ke4 {[%clk 0:00:19.4]} 50... Re5+ {[%clk 0:00:11.5]} 51. Kf4
{[%clk 0:00:19.7]} 51... Rc5 {[%clk 0:00:11.8]} 52. Rb6 {[%clk 0:00:17]} 52...
Rc1 {[%clk 0:00:10.7]} 53. Rb5 {[%clk 0:00:17.2]} 53... Ra1 {[%clk 0:00:09.6]}
54. Rc5 {[%clk 0:00:14.4]} 54... a4 {[%clk 0:00:09.8]} 55. b4 {[%clk 0:00:09.5]}
55... a3 {[%clk 0:00:08.9]} 56. Ra5 {[%clk 0:00:09.1]} 56... a2 {[%clk
0:00:08.7]} 57. Kg3 {[%clk 0:00:07.5]} 57... Rg1+ {[%clk 0:00:08.8]} 58. Kh2
{[%clk 0:00:08.1]} 58... a1=Q {[%clk 0:00:09.2]} 0-1

[Event "Early-Titled-Tuesday-Blitz-July-09-2024"]
[Site "Chess.com"]
[Date "2024.07.09"]
[Round "3"]
[White "Zorbos"]
[Black "Gyulamiryan-koryun"]
[Result "1-0"]
[WhiteElo "2685"]
[BlackElo "1864"]
[TimeControl "180+1"]
[EndTime "8:30:26 PDT"]
[Termination "Zorbos won by resignation"]

1. d4 {[%clk 0:02:55.8]} 1... Nf6 {[%clk 0:02:59.6]} 2. c4 {[%clk 0:02:56.1]}
2... c5 {[%clk 0:02:59.7]} 3. d5 {[%clk 0:02:56.4]} 3... b5 {[%clk 0:02:59.4]}
4. cxb5 {[%clk 0:02:57.3]} 4... a6 {[%clk 0:02:59.1]} 5. e3 {[%clk 0:02:58.2]}
5... g6 {[%clk 0:02:57.1]} 6. Nc3 {[%clk 0:02:58.7]} 6... Bg7 {[%clk 0:02:56.6]}
7. a4 {[%clk 0:02:59.4]} 7... O-O {[%clk 0:02:55.3]} 8. Nf3 {[%clk 0:03:00]}
8... d6 {[%clk 0:02:52.6]} 9. Be2 {[%clk 0:03:00.1]} 9... Nbd7 {[%clk
0:02:50.7]} 10. O-O {[%clk 0:02:59.5]} 10... axb5 {[%clk 0:02:44.9]} 11. Bxb5
{[%clk 0:02:59.3]} 11... Qa5 {[%clk 0:02:44.2]} 12. Bd2 {[%clk 0:02:59]} 12...
Qc7 {[%clk 0:02:36.3]} 13. Bc6 {[%clk 0:02:53.2]} 13... Bb7 {[%clk 0:02:34.3]}
14. Nb5 {[%clk 0:02:53.3]} 14... Qc8 {[%clk 0:02:33.7]} 15. Bxb7 {[%clk
0:02:52.5]} 15... Qxb7 {[%clk 0:02:33.6]} 16. Bc3 {[%clk 0:02:53]} 16... Qxd5
{[%clk 0:02:21.6]} 17. Qe2 {[%clk 0:02:53.6]} 17... Qc6 {[%clk 0:02:16.1]} 18.
Rfc1 {[%clk 0:02:49.8]} 18... Rfb8 {[%clk 0:02:13.4]} 19. b3 {[%clk 0:02:42.1]}
19... Ne4 {[%clk 0:02:04.8]} 20. Bxg7 {[%clk 0:02:43]} 20... Kxg7 {[%clk
0:02:04.8]} 21. h4 {[%clk 0:02:39.7]} 21... h5 {[%clk 0:02:04.1]} 22. Qb2+
{[%clk 0:02:37.8]} 22... Nef6 {[%clk 0:02:02.2]} 23. Ng5 {[%clk 0:02:37.2]}
23... Kg8 {[%clk 0:01:54]} 24. Qc3 {[%clk 0:02:36.1]} 24... Ne5 {[%clk
0:01:51.5]} 25. f3 {[%clk 0:02:24]} 25... Nd5 {[%clk 0:01:44.2]} 26. Qd2 {[%clk
0:02:22]} 26... Nf6 {[%clk 0:01:28]} 27. e4 {[%clk 0:02:20.9]} 27... Qd7 {[%clk
0:01:05.1]} 28. Kh2 {[%clk 0:02:18.1]} 28... Rc8 {[%clk 0:01:04.4]} 29. Kh1
{[%clk 0:02:17.7]} 29... Rab8 {[%clk 0:01:03.6]} 30. Rd1 {[%clk 0:02:08]} 30...
Nh7 {[%clk 0:01:00.6]} 31. Qc3 {[%clk 0:02:06.9]} 31... Nxg5 {[%clk 0:00:58.7]}
32. hxg5 {[%clk 0:02:06]} 32... Qe6 {[%clk 0:00:50.4]} 33. Rac1 {[%clk 0:02:00]}
33... Nc6 {[%clk 0:00:35.4]} 34. Qe3 {[%clk 0:01:58.3]} 34... Qe5 {[%clk
0:00:26.9]} 35. f4 {[%clk 0:01:56.4]} 35... Qe6 {[%clk 0:00:24.2]} 36. Qf3
{[%clk 0:01:55.3]} 36... Nd4 {[%clk 0:00:20.2]} 37. Nxd4 {[%clk 0:01:55]} 37...
cxd4 {[%clk 0:00:20.5]} 38. f5 {[%clk 0:01:52.6]} 38... Qe5 {[%clk 0:00:14.6]}
39. b4 {[%clk 0:01:40.6]} 39... Rxc1 {[%clk 0:00:12.7]} 40. Rxc1 {[%clk
0:01:41.5]} 40... d5 {[%clk 0:00:08.9]} 41. exd5 {[%clk 0:01:33.6]} 41... Qxf5
{[%clk 0:00:07.8]} 42. Qxf5 {[%clk 0:01:32.9]} 42... gxf5 {[%clk 0:00:08.2]} 43.
b5 {[%clk 0:01:33.8]} 43... e5 {[%clk 0:00:07.6]} 44. d6 {[%clk 0:01:10.7]}
44... d3 {[%clk 0:00:07.3]} 45. d7 {[%clk 0:01:09.4]} 45... Kg7 {[%clk
0:00:06.6]} 46. Kg1 {[%clk 0:00:57.7]} 46... e4 {[%clk 0:00:05.7]} 47. Kf2
{[%clk 0:00:57.9]} 47... Rd8 {[%clk 0:00:05.3]} 48. Rc7 {[%clk 0:00:53.1]} 48...
f4 {[%clk 0:00:05.6]} 49. b6 {[%clk 0:00:49.6]} 49... e3+ {[%clk 0:00:05.9]} 50.
Ke1 {[%clk 0:00:49.4]} 50... Kg6 {[%clk 0:00:03.6]} 51. b7 {[%clk 0:00:48.9]}
51... Kxg5 {[%clk 0:00:03.4]} 52. Rc3 {[%clk 0:00:47.2]} 52... d2+ {[%clk
0:00:03.3]} 53. Ke2 {[%clk 0:00:47.7]} 53... Rb8 {[%clk 0:00:03.3]} 54. Rd3
{[%clk 0:00:41.2]} 54... Rd8 {[%clk 0:00:03.2]} 55. b8=Q {[%clk 0:00:38.5]}
55... Rxb8 {[%clk 0:00:03.4]} 56. d8=Q+ {[%clk 0:00:39.4]} 56... Rxd8 {[%clk
0:00:03.8]} 57. Rxd8 {[%clk 0:00:40.3]} 57... Kg4 {[%clk 0:00:03.4]} 58. Rg8+
{[%clk 0:00:41]} 58... Kf5 {[%clk 0:00:03.4]} 59. a5 {[%clk 0:00:41.4]} 59... h4
{[%clk 0:00:03.6]} 60. Rh8 {[%clk 0:00:36.6]} 60... Kg4 {[%clk 0:00:03.6]} 61.
a6 {[%clk 0:00:37.2]} 61... h3 {[%clk 0:00:03.5]} 62. Rxh3 {[%clk 0:00:36.7]}
62... f5 {[%clk 0:00:03.6]} 63. a7 {[%clk 0:00:36.5]} 63... f3+ {[%clk
0:00:04.1]} 64. Rxf3 {[%clk 0:00:36.7]} 64... f4 {[%clk 0:00:04.6]} 65. a8=Q
{[%clk 0:00:36.7]} 1-0

[Event "Early-Titled-Tuesday-Blitz-July-09-2024"]
[Site "Chess.com"]
[Date "2024.07.09"]
[Round "3"]
[White "sathvikadiga"]
[Black "sleeping_in_the_fire"]
[Result "0-1"]
[WhiteElo "2664"]
[BlackElo "2478"]
[TimeControl "180+1"]
[EndTime "8:30:26 PDT"]
[Termination "sleeping_in_the_fire won by checkmate"]

1. e4 {[%clk 0:03:00.9]} 1... c5 {[%clk 0:02:59]} 2. Nf3 {[%clk 0:03:01]} 2...
d6 {[%clk 0:02:59.1]} 3. d4 {[%clk 0:03:00.9]} 3... cxd4 {[%clk 0:03:00]} 4.
Nxd4 {[%clk 0:03:01.4]} 4... Nf6 {[%clk 0:03:00.4]} 5. Nc3 {[%clk 0:03:01.5]}
5... Nc6 {[%clk 0:03:01]} 6. Bg5 {[%clk 0:03:01.2]} 6... e6 {[%clk 0:03:01.7]}
7. Qd3 {[%clk 0:03:01.8]} 7... Bd7 {[%clk 0:02:59.1]} 8. O-O-O {[%clk
0:03:01.1]} 8... a6 {[%clk 0:02:58.6]} 9. f4 {[%clk 0:03:01.2]} 9... Be7 {[%clk
0:02:58.5]} 10. Be2 {[%clk 0:02:58.7]} 10... b5 {[%clk 0:02:58.5]} 11. a3 {[%clk
0:02:54.2]} 11... h6 {[%clk 0:02:58.1]} 12. Bh4 {[%clk 0:02:53.4]} 12... Qc7
{[%clk 0:02:58.3]} 13. g4 {[%clk 0:02:47.7]} 13... Rc8 {[%clk 0:02:40]} 14. Bf2
{[%clk 0:02:34.4]} 14... b4 {[%clk 0:02:35.4]} 15. Nxc6 {[%clk 0:01:10.5]} 15...
Bxc6 {[%clk 0:02:07.3]} 16. axb4 {[%clk 0:01:07.2]} 16... d5 {[%clk 0:02:03.4]}
17. e5 {[%clk 0:00:40.2]} 17... Ne4 {[%clk 0:02:01.6]} 18. Nxe4 {[%clk
0:00:39.3]} 18... dxe4 {[%clk 0:02:02.5]} 19. Qxa6 {[%clk 0:00:38.9]} 19... O-O
{[%clk 0:01:53.2]} 20. Qb6 {[%clk 0:00:25.8]} 20... e3 {[%clk 0:01:37.8]} 21.
Bxe3 {[%clk 0:00:24.9]} 21... Bxh1 {[%clk 0:01:34.2]} 22. Qxc7 {[%clk 0:00:25]}
22... Rxc7 {[%clk 0:01:34.5]} 23. Rxh1 {[%clk 0:00:25.6]} 23... Bxb4 {[%clk
0:01:34.2]} 24. c3 {[%clk 0:00:21.6]} 24... Bxc3 {[%clk 0:01:33.6]} 25. bxc3
{[%clk 0:00:22.5]} 25... Rxc3+ {[%clk 0:01:33.8]} 26. Kd2 {[%clk 0:00:22.9]}
26... Ra3 {[%clk 0:01:34.3]} 27. Bb6 {[%clk 0:00:06.3]} 27... Rb8 {[%clk
0:01:26.1]} 28. Bc5 {[%clk 0:00:05.9]} 28... Rb2+ {[%clk 0:01:15.4]} 29. Kc1
{[%clk 0:00:05.9]} 29... Rab3 {[%clk 0:01:15.3]} 30. Bc4 {[%clk 0:00:03.6]}
30... Rb1+ {[%clk 0:01:14.8]} 31. Kc2 {[%clk 0:00:04.2]} 31... R1b2+ {[%clk
0:01:12.9]} 32. Kc1 {[%clk 0:00:04.2]} 32... Rb7 {[%clk 0:01:12.4]} 33. Bd3
{[%clk 0:00:03.2]} 33... R2b3 {[%clk 0:01:11]} 34. Bc2 {[%clk 0:00:02.9]} 34...
Rc3 {[%clk 0:01:10.1]} 35. Bd4 {[%clk 0:00:03.5]} 35... Rc4 {[%clk 0:01:09.1]}
36. Rd1 {[%clk 0:00:04.1]} 36... Rbb4 {[%clk 0:01:05.6]} 37. Be3 {[%clk
0:00:03.6]} 37... g6 {[%clk 0:01:01.6]} 38. f5 {[%clk 0:00:02.1]} 38... Rb3
{[%clk 0:00:58.1]} 39. Rd8+ {[%clk 0:00:01.3]} 39... Kg7 {[%clk 0:00:56.1]} 40.
f6+ {[%clk 0:00:01.9]} 40... Kh7 {[%clk 0:00:56.7]} 41. Bd2 {[%clk 0:00:01.4]}
41... Rb7 {[%clk 0:00:53.3]} 42. Rd4 {[%clk 0:00:01]} 42... Rxd4 {[%clk
0:00:53.2]} 43. Be3 {[%clk 0:00:01.9]} 43... Rc4 {[%clk 0:00:52.8]} 44. Kd2
{[%clk 0:00:02.5]} 44... Rd7+ {[%clk 0:00:52.7]} 45. Bd3 {[%clk 0:00:03.2]}
45... Rdc7 {[%clk 0:00:53.6]} 46. Bxc4 {[%clk 0:00:03.4]} 46... Rxc4 {[%clk
0:00:54.5]} 47. Kd3 {[%clk 0:00:04.1]} 47... Rxg4 {[%clk 0:00:54.7]} 48. Ke2
{[%clk 0:00:04.3]} 48... Rg2+ {[%clk 0:00:54.9]} 49. Kf3 {[%clk 0:00:05.2]}
49... Rxh2 {[%clk 0:00:55.8]} 50. Bf4 {[%clk 0:00:05.9]} 50... Rh5 {[%clk
0:00:56]} 51. Kg4 {[%clk 0:00:05.9]} 51... Rf5 {[%clk 0:00:56.9]} 52. Bg3 {[%clk
0:00:06.5]} 52... g5 {[%clk 0:00:57.2]} 53. Kh5 {[%clk 0:00:06.3]} 53... Rf1
{[%clk 0:00:56.8]} 54. Kg4 {[%clk 0:00:04.6]} 54... Kg6 {[%clk 0:00:57]} 55. Kh3
{[%clk 0:00:04.5]} 55... h5 {[%clk 0:00:57.2]} 56. Kg2 {[%clk 0:00:05.2]} 56...
Ra1 {[%clk 0:00:57.8]} 57. Kh3 {[%clk 0:00:05.2]} 57... Kf5 {[%clk 0:00:58.2]}
58. Kg2 {[%clk 0:00:05.6]} 58... Ra2+ {[%clk 0:00:58.4]} 59. Bf2 {[%clk
0:00:06.5]} 59... Kg4 {[%clk 0:00:58]} 60. Kg1 {[%clk 0:00:06.9]} 60... Kf3
{[%clk 0:00:57.9]} 61. Bc5 {[%clk 0:00:07.8]} 61... g4 {[%clk 0:00:57.9]} 62.
Kh1 {[%clk 0:00:07]} 62... h4 {[%clk 0:00:58.3]} 63. Bg1 {[%clk 0:00:07.4]}
63... g3 {[%clk 0:00:57.9]} 64. Bd4 {[%clk 0:00:06.8]} 64... h3 {[%clk
0:00:57.7]} 65. Bg1 {[%clk 0:00:05.6]} 65... h2 {[%clk 0:00:51.4]} 66. Bd4
{[%clk 0:00:06.1]} 66... Rd2 {[%clk 0:00:47.1]} 67. Bg1 {[%clk 0:00:05.4]} 67...
hxg1=Q+ {[%clk 0:00:45.6]} 68. Kxg1 {[%clk 0:00:06.3]} 68... Rd1# {[%clk
0:00:46.3]} 0-1